bitfinex/quotes_SOLUSD_20251201
["timestamp","ask_amount","ask_price","bid_price","bid_amount"]
[1764548541790,8.34077745,130.2,130.17,4.54]
[1764548541996,8.34077745,130.2,130.17,3.84]
[1764548542204,7.67952022,130.22,130.17,3.84]
[1764548542205,8.34077745,130.18,130.17,3.84]
[1764548542599,17.15072237,130.18,130.17,3.84]
[1764548542798,8.80994492,130.17,130.11,0.7]
[1764548543002,16.308864,130.2,130.11,0.7]
[1764548543003,8.34077745,130.16,130.12,3.84]
[1764548543416,0.59,130.25,130.13,8.38411043]
[1764548543598,8.80994492,130.22,130.13,16.72488788]
[1764548543793,8.34077745,130.21,130.16,8.34077745]
[1764548544321,8.34077745,130.22,130.17,9.05077745]
[1764548544522,30.87873103,130.27,130.17,0.71]
[1764548544724,8.34077745,130.21,130.18,0.71]
[1764548544915,8.34077745,130.21,130.19,3.84]
[1764548545300,26.87156151,130.25,130.19,4.55]
[1764548545813,8.34077745,130.21,130.19,4.55]
[1764548546206,8.34077745,130.24,130.2,0.72]
[1764548546401,8.34077745,130.22,130.19,3.84]
[1764548546712,17.15072237,130.2,130.19,3.84]
[1764548546908,17.15072237,130.2,130.19,3.74]
[1764548547216,7.68108149,130.19,130.17,3.82]
[1764548547416,8.34077745,130.18,130.17,3.82]
[1764548547741,26.88174192,130.2,130.17,3.82]
[1764548547918,7.68051305,130.2,130.17,3.82]
[1764548548222,8.34077745,130.18,130.17,3.82]
[1764548548600,8.34077745,130.19,130.17,4.54]
[1764548548797,8.34077745,130.18,130.17,3.82]
[1764548549308,16.02244898,130.18,130.17,3.82]
[1764548549510,24.8323939,130.18,130.17,3.82]
[1764548550632,8.34077745,130.18,130.17,3.82]
[1764548551335,41.6312579,130.18,130.17,3.82]
[1764548551511,32.33131298,130.18,130.17,3.82]
[1764548551707,33.45958637,130.18,130.17,3.82]
[1764548551911,16.02244898,130.18,130.17,3.82]
[1764548552109,16.308864,130.2,130.17,3.82]
[1764548552403,0.49,130.26,130.17,4.54]
[1764548552622,8.34077745,130.18,130.17,4.54]
[1764548552831,8.34077745,130.18,130.17,3.82]
[1764548553309,16.02244898,130.18,130.17,3.82]
[1764548553506,16.02244898,130.18,130.11,0.72]
[1764548553727,7.68167153,130.18,130.12,3.82]
[1764548553942,8.34077745,130.17,130.12,3.82]
[1764548554110,8.34077745,130.17,130.13,0.72]
[1764548554430,8.34077745,130.14,130.12,3.82]
[1764548554930,8.34077745,130.13,130.12,3.82]
[1764548555230,16.02540051,130.13,130.12,3.82]
[1764548555427,7.68462306,130.13,130.12,3.82]
[1764548555634,16.02540051,130.13,130.12,3.82]
[1764548556728,16.308864,130.16,130.12,3.82]
[1764548556937,8.34077745,130.13,130.12,4.54]
[1764548557108,8.34077745,130.14,130.12,4.54]
[1764548557531,8.34077745,130.15,130.13,0.72]
[1764548557740,16.308864,130.18,130.13,0.72]
[1764548557935,0.49,130.24,130.13,0.72]
[1764548558308,8.34077745,130.17,130.13,0.72]
[1764548559209,8.34077745,130.14,130.12,3.82]
[1764548559610,16.308864,130.18,130.12,4.54]
[1764548559850,8.34077745,130.13,130.12,4.54]
[1764548560026,8.34077745,130.14,130.12,3.82]
[1764548560315,8.34077745,130.16,130.13,0.72]
[1764548560629,8.34077745,130.15,130.13,0.72]
[1764548560823,26.88589796,130.18,130.12,3.82]
[1764548561038,8.34077745,130.14,130.12,3.82]
[1764548561331,8.34077745,130.13,130.12,3.82]
[1764548561518,16.02540051,130.13,130.12,3.82]
[1764548563010,8.34077745,130.13,130.12,4.54]
[1764548563210,19.19975424,130.21,130.12,39.778997]
[1764548563410,8.34077745,130.19,130.13,9.06077745]
[1764548563838,7.67577525,130.28,130.17,8.34077745]
[1764548564022,8.34077745,130.24,130.18,8.34077745]
[1764548564219,19.19091118,130.27,130.19,3.8]
[1764548564419,8.34077745,130.25,130.19,3.8]
[1764548564619,8.34077745,130.25,130.2,0.72]
[1764548564933,8.34077745,130.24,130.21,7.67990169]
[1764548565136,8.34077745,130.25,130.21,7.67990169]
[1764548565434,7.67681401,130.27,130.22,0.72]
[1764548565645,38.35456075,130.37,130.23,8.34077745]
[1764548565646,19.18463292,130.32,130.23,8.34077745]
[1764548565834,8.34077745,130.27,130.22,0.72]
[1764548566140,8.34077745,130.28,130.22,9.06077745]
[1764548566438,8.34077745,130.25,130.22,0.72]
[1764548566735,8.34077745,130.24,130.21,26.87965593]
[1764548566939,8.34077745,130.24,130.21,27.59965593]
[1764548567125,8.34077745,130.25,130.21,26.87965593]
[1764548567326,8.34077745,130.25,130.22,0.72]
[1764548568609,8.34077745,130.25,130.22,8.3993006]
[1764548569039,8.34077745,130.24,130.23,3.78]
[1764548569930,8.83077745,130.24,130.23,3.78]
[1764548570246,17.64072237,130.24,130.23,3.78]
[1764548570630,33.94958637,130.24,130.16,0.72]
[1764548570836,8.34077745,130.17,130.12,0.72]
[1764548571031,8.34077745,130.15,130.13,3.78]
[1764548571324,8.34077745,130.16,130.13,3.78]
[1764548571530,8.34077745,130.15,130.13,3.78]
[1764548571849,8.34077745,130.14,130.13,3.78]
[1764548572141,17.15072237,130.14,130.13,3.78]
[1764548572357,16.308864,130.15,130.13,3.78]
[1764548572544,8.34077745,130.14,130.13,3.78]
[1764548572729,17.15072237,130.14,130.13,3.78]
[1764548573243,17.15072237,130.14,130.13,3.68]
[1764548573244,17.64072237,130.14,130.13,3.68]
[1764548573551,0.39,130.2,130.11,4.5]
[1764548573759,8.34077745,130.15,130.12,11.46508856]
[1764548573917,0.39,130.26,130.14,8.34077745]
[1764548574271,8.34077745,130.23,130.14,16.308864]
[1764548574414,8.34077745,130.25,130.15,0.72]
[1764548574620,1.37401377,130.28,130.11,0.72]
[1764548574824,8.34077745,130.16,130.12,0.72]
[1764548575038,8.34077745,130.15,130.12,0.72]
[1764548575315,8.34077745,130.14,130.12,0.72]
[1764548575830,8.34077745,130.15,130.12,8.40484958]
[1764548576037,8.34077745,130.16,130.12,8.40484958]
[1764548576242,8.34077745,130.15,130.13,0.69]
[1764548576542,8.34077745,130.15,130.14,3.78]
[1764548577522,8.34077745,130.21,130.14,12.81077745]
[1764548577733,4.20991096,130.33,130.18,7.68167153]
[1764548577734,8.34077745,130.24,130.18,7.68167153]
[1764548577925,8.34077745,130.25,130.19,8.34077745]
[1764548578136,4.20991096,130.33,130.22,8.34077745]
[1764548578445,8.34077745,130.28,130.23,3.78]
[1764548578748,8.34077745,130.27,130.23,4.47]
[1764548579049,8.34077745,130.28,130.24,0.69]
[1764548579342,8.34077745,130.27,130.24,0.69]
[1764548579862,8.34077745,130.28,130.24,8.36808122]
[1764548580024,16.4835104,130.32,130.24,8.36812884]
[1764548580220,16.4835104,130.32,130.25,0.69]
[1764548580420,16.4835104,130.32,130.24,7.67812884]
[1764548580421,8.34077745,130.27,130.24,7.67812884]
[1764548580622,8.34077745,130.25,130.19,16.308864]
[1764548580819,8.34077745,130.2,130.17,7.68174701]
[1764548581027,8.80994492,130.24,130.18,3.78]
[1764548581249,7.67948457,130.22,130.18,3.78]
[1764548581424,8.34077745,130.21,130.19,0.69]
[1764548581638,8.80994492,130.24,130.19,0.69]
[1764548581828,8.34077745,130.2,130.18,3.78]
[1764548582026,8.34077745,130.19,130.18,3.78]
[1764548582228,17.15072237,130.19,130.18,3.78]
[1764548582427,17.54072237,130.19,130.18,3.68]
[1764548582949,8.34077745,130.19,130.18,3.68]
[1764548583134,16.02185894,130.19,130.18,3.68]
[1764548583339,41.43066786,130.19,130.12,3.78]
[1764548583544,33.08989041,130.19,130.12,3.78]
[1764548583740,43.19264923,130.19,130.13,0.69]
[1764548583944,8.34077745,130.18,130.13,0.69]
[1764548584453,8.34077745,130.19,130.13,0.69]
[1764548586863,16.308864,130.1,130.09,3.78]
[1764548587045,24.64964145,130.1,130.09,3.78]
[1764548587240,7.68589104,130.11,130.09,3.78]
[1764548587554,8.34077745,130.1,130.09,3.78]
[1764548589360,16.02717253,130.1,130.09,3.78]
[1764548590363,8.34077745,130.1,130.09,3.78]
[1764548590661,24.83711745,130.1,130.09,3.78]
[1764548590863,8.34077745,130.1,130.09,3.78]
[1764548591162,16.02717253,130.1,130.09,3.78]
[1764548591462,24.83711745,130.1,130.09,3.78]
[1764548591668,24.83711745,130.1,129.95,0.1]
[1764548591669,8.80994492,130.09,129.95,0.1]
[1764548591844,8.34077745,130.03,129.99,0.69]
[1764548592044,0.19,130.13,129.99,0.69]
[1764548592262,8.34077745,130.07,130.01,8.34077745]
[1764548592456,16.308864,130.1,129.99,9.03077745]
[1764548592457,8.34077745,130.05,129.99,9.03077745]
[1764548592639,8.80994492,130.09,130.0,0.69]
[1764548593159,8.34077745,130.05,130.0,0.69]
[1764548593361,8.34077745,130.05,130.01,7.69171602]
[1764548593561,8.34077745,130.04,130.0,8.38179409]
[1764548593742,8.34077745,130.04,130.01,0.69]
[1764548594059,1.99999999,130.15,130.01,0.69]
[1764548594060,8.34077745,130.07,130.01,9.03077745]
[1764548594257,8.34077745,130.07,130.01,0.69]
[1764548594459,8.34077745,130.07,130.02,0.69]
[1764548594656,8.34077745,130.07,130.03,3.76]
[1764548595046,8.34077745,130.08,130.04,0.69]
[1764548595250,8.34077745,130.09,130.05,7.68935024]
[1764548595455,35.51911056,130.14,130.05,7.68935024]
[1764548595456,7.68183937,130.18,130.06,8.34077745]
[1764548595665,8.80994492,130.17,130.07,0.69]
[1764548595980,8.80994492,130.17,130.04,8.37975529]
[1764548595981,8.34077745,130.08,130.04,8.37975529]
[1764548596262,8.34077745,130.07,130.04,8.37975529]
[1764548596476,8.80994492,130.12,130.05,0.69]
[1764548596477,8.34077745,130.09,130.05,0.69]
[1764548596676,8.34077745,130.16,130.08,8.34077745]
[1764548596895,26.86521338,130.28,130.15,8.34077745]
[1764548597165,8.34077745,130.21,130.16,3.76]
[1764548597390,8.34077745,130.2,130.16,4.45]
[1764548597562,8.34077745,130.2,130.17,0.69]
[1764548597762,0.2,130.29,130.18,8.34077745]
[1764548598068,8.34077745,130.26,130.2,8.34077745]
[1764548598577,8.34077745,130.27,130.21,9.03077745]
[1764548599070,8.34077745,130.25,130.22,0.69]
[1764548599379,8.34077745,130.25,130.23,3.76]
[1764548599683,8.34077745,130.24,130.23,3.76]
[1764548600356,9.78282739,130.24,130.23,3.76]
[1764548600674,16.308864,130.26,130.23,4.45]
[1764548600862,9.78282739,130.24,130.23,3.76]
[1764548601169,0.2,130.29,130.24,0.69]
[1764548601369,0.2,130.29,130.27,17.45919186]
[1764548601672,0.2,130.29,130.26,7.67686616]
[1764548601849,0.2,130.29,130.27,0.69]
[1764548602547,9.78282739,130.28,130.24,7.67813267]
[1764548602869,9.78282739,130.25,130.23,3.76]
[1764548603047,8.80994492,130.23,130.2,3.76]
[1764548603245,9.78282739,130.21,130.2,3.76]
[1764548603452,17.46272908,130.21,130.2,3.76]
[1764548603651,26.272674,130.21,130.2,3.76]
[1764548604550,8.80994492,130.2,130.1,0.71]
[1764548604749,8.80994492,130.2,130.15,3.74]
[1764548604968,9.78282739,130.16,130.15,3.74]
[1764548605151,18.59277231,130.16,130.07,0.71]
[1764548605356,65.27916441,130.21,130.07,0.71]
[1764548605357,7.68662365,130.1,130.07,0.71]
[1764548605560,7.68662365,130.1,130.06,3.74]
[1764548605763,7.77662365,130.1,130.06,3.74]
[1764548605959,8.80994492,130.09,130.06,3.74]
[1764548606577,8.80994492,130.06,129.98,7.69348119]
[1764548606772,8.80994492,130.06,130.0,3.74]
[1764548607482,7.68935024,130.05,130.0,3.74]
[1764548607779,8.80994492,130.04,130.0,3.74]
[1764548608077,9.78282739,130.01,130.0,3.74]
[1764548608556,9.78282739,130.01,130.0,4.42]
[1764548608757,9.78282739,130.01,130.0,3.74]
[1764548609064,9.78282739,130.04,130.0,12.11213466]
[1764548609252,8.80994492,130.09,130.01,0.68]
[1764548609455,9.78282739,130.04,130.01,8.37124775]
[1764548609651,9.78282739,130.02,130.0,3.74]
[1764548609867,8.80994492,130.0,129.95,0.1]
[1764548610366,8.80994492,130.02,129.95,0.78]
[1764548610683,9.78282739,129.97,129.95,0.78]
[1764548610976,9.78282739,129.96,129.95,0.1]
[1764548611355,42.59631159,129.96,129.95,0.1]
[1764548611571,34.90163631,129.96,129.95,0.1]
[1764548611882,9.78282739,129.96,129.95,0.1]
[1764548612054,9.78282739,129.96,129.95,0.78]
[1764548612260,9.78282739,129.96,129.95,0.1]
[1764548612464,18.59277231,129.96,129.95,0.1]
[1764548613071,19.22661126,130.03,129.95,0.1]
[1764548613072,8.80994492,129.99,129.95,0.1]
[1764548613383,8.80994492,130.11,129.96,0.68]
[1764548613559,9.78282739,130.0,129.96,0.68]
[1764548613759,7.68580431,130.11,129.98,9.78282739]
[1764548613960,9.78282739,130.07,130.01,9.78282739]
[1764548614186,9.78282739,130.06,130.02,3.76]
[1764548614356,9.78282739,130.05,130.02,3.76]
[1764548614554,9.78282739,130.06,130.03,0.68]
[1764548614781,7.68344218,130.15,130.03,0.68]
[1764548615159,9.78282739,130.09,130.03,0.68]
[1764548615362,65.294208,130.18,130.04,26.91479544]
[1764548615563,9.78282739,130.13,130.04,26.91479544]
[1764548615766,9.78282739,130.12,130.06,9.78282739]
[1764548615955,9.78282739,130.1,130.05,0.68]
[1764548616156,7.68167153,130.18,130.07,9.78282739]
[1764548616359,9.78282739,130.09,130.05,0.68]
[1764548616591,9.78282739,130.06,130.02,3.76]
[1764548616760,9.78282739,130.05,130.03,0.68]
[1764548616960,9.78282739,130.04,130.02,3.76]
[1764548617171,16.308864,130.1,130.03,0.68]
[1764548617493,9.78282739,130.06,130.03,0.68]
[1764548617784,16.49745674,130.09,130.03,0.68]
[1764548617987,9.78282739,130.04,130.03,0.68]
[1764548618362,9.78282739,130.04,130.02,3.76]
[1764548618562,9.78282739,130.03,130.02,3.76]
[1764548618976,8.80994492,130.05,130.02,3.76]
[1764548619169,9.78282739,130.03,130.02,3.76]
[1764548619570,18.59277231,130.03,130.02,3.76]
[1764548620093,34.90163631,130.03,130.02,3.76]
[1764548620593,34.90163631,130.03,129.96,19.14]
[1764548620763,9.78282739,129.97,129.96,22.9]
[1764548620959,25.11880892,130.03,129.96,22.9]
[1764548621277,9.78282739,129.97,129.96,22.9]
[1764548621681,44.34517102,130.03,129.96,30.59464814]
[1764548621987,9.78282739,129.97,129.96,3.76]
[1764548623469,17.47691063,129.97,129.96,3.76]
[1764548623998,9.78282739,129.97,129.96,3.76]
[1764548624373,26.92646124,129.99,129.96,3.76]
[1764548624576,9.78282739,129.97,129.96,3.76]
[1764548625997,7.69276265,130.0,129.96,4.31624]
[1764548626304,9.78282739,130.01,129.97,0.68]
[1764548626794,16.308864,130.06,129.97,0.68]
[1764548626795,9.78282739,130.02,129.97,0.68]
[1764548627101,9.78282739,130.01,129.97,0.68]
[1764548627312,9.78282739,130.01,129.97,8.37366312]
[1764548627478,9.78282739,130.02,129.97,8.37366312]
[1764548627680,9.78282739,130.02,129.98,0.68]
[1764548628400,9.78282739,130.01,129.98,8.37321958]
[1764548628601,75.0,130.15,129.98,8.37321958]
[1764548628602,7.68862321,130.07,129.99,9.78282739]
[1764548628909,75.0,130.17,129.98,27.60694784]
[1764548628910,9.78282739,130.02,130.0,0.68]
[1764548629105,9.78282739,130.01,130.0,0.68]
[1764548629320,9.78282739,130.01,129.97,7.69383484]
[1764548629489,9.78282739,129.98,129.97,0.68]
[1764548629691,9.78282739,129.98,129.96,3.63624]
[1764548629914,25.11880892,130.03,129.96,3.63624]
[1764548629915,9.78282739,129.97,129.96,3.63624]
[1764548630089,8.80994492,130.02,129.96,3.63624]
[1764548630284,9.78282739,129.97,129.96,3.63624]
[1764548630503,38.40835765,130.18,129.97,0.68]
[1764548630504,8.80994492,130.09,129.97,0.68]
[1764548630813,9.78282739,130.01,129.97,0.68]
[1764548631015,9.78282739,130.0,129.97,0.68]
[1764548631498,7.68935024,130.05,129.97,8.37359809]
[1764548632008,9.78282739,130.01,129.98,0.68]
[1764548632302,9.78282739,130.0,129.98,0.68]
[1764548632503,9.78282739,130.01,129.98,8.37304668]
[1764548632707,9.78282739,130.01,129.98,0.68]
[1764548633006,9.78282739,130.01,129.99,0.68]
[1764548634314,9.78282739,130.05,129.99,10.46282739]
[1764548634515,9.78282739,130.05,130.0,26.92307692]
[1764548634715,9.78282739,130.05,130.0,27.60307692]
[1764548634931,9.78282739,130.03,130.01,0.68]
[1764548635117,9.78282739,130.02,129.97,0.68]
[1764548635327,9.78282739,130.03,129.98,3.76]
[1764548635620,9.78282739,130.02,129.98,3.76]
[1764548635795,9.78282739,130.03,129.99,0.67]
[1764548635991,9.78282739,130.02,129.99,0.67]
[1764548636424,9.78282739,130.01,129.99,0.67]
[1764548636608,9.78282739,130.03,129.99,0.67]
[1764548636800,9.78282739,130.07,130.01,9.78282739]
[1764548637000,9.78282739,130.07,129.99,27.5947483]
[1764548637001,9.78282739,130.03,129.99,8.36249967]
[1764548637322,9.78282739,130.03,130.0,0.67]
[1764548637633,16.308864,130.08,130.0,0.67]
[1764548637634,9.78282739,130.01,130.0,0.67]
[1764548637915,9.78282739,130.01,129.98,3.76]
[1764548638117,9.78282739,130.01,129.99,0.67]
[1764548638517,9.78282739,130.0,129.98,3.76]
[1764548638711,7.69217945,130.01,129.95,0.77]
[1764548638712,9.78282739,129.99,129.95,0.77]
[1764548638915,9.78282739,129.97,129.96,3.76]
[1764548639325,9.78282739,129.98,129.96,4.43]
[1764548639820,25.11880892,130.03,129.95,0.1]
[1764548639821,9.78282739,129.97,129.95,0.1]
[1764548640002,8.80994492,129.99,129.96,3.76]
[1764548640319,16.308864,130.0,129.96,4.43]
[1764548640521,7.69289945,129.99,129.96,3.76]
[1764548640824,8.80994492,129.96,129.95,0.1]
[1764548641021,8.80994492,129.96,129.95,3.86]
[1764548641321,18.59277231,129.96,129.95,3.86]
[1764548641704,18.59277231,129.96,129.95,0.1]
[1764548641910,26.92514808,129.99,129.95,0.77]
[1764548642457,9.78282739,129.97,129.95,0.77]
[1764548642811,9.78282739,129.99,129.95,0.77]
[1764548643026,4.0166959,130.1,129.95,18.2476879]
[1764548643027,9.78282739,130.01,129.95,18.2476879]
[1764548643201,9.78282739,130.04,129.98,9.78282739]
[1764548643402,9.78282739,130.07,130.02,9.78282739]
[1764548643721,9.78282739,130.08,130.02,9.78282739]
[1764548643897,9.78282739,130.09,130.03,10.45282739]
[1764548644099,9.78282739,130.09,130.04,0.67]
[1764548644408,9.78282739,130.1,130.05,3.76]
[1764548644722,4.01544755,130.14,130.05,3.76]
[1764548644723,9.78282739,130.08,130.05,3.76]
[1764548645018,9.78282739,130.07,130.05,3.76]
[1764548645218,26.8967312,130.13,130.06,0.67]
[1764548645410,26.8967312,130.13,130.06,10.45282739]
[1764548645411,7.68462306,130.13,130.06,10.45282739]
[1764548645610,9.78282739,130.12,130.06,10.45282739]
[1764548645922,9.78282739,130.12,130.05,30.6725057]
[1764548645923,17.46638027,130.15,130.09,9.78282739]
[1764548646103,9.78282739,130.16,130.1,9.78282739]
[1764548646299,26.88585035,130.18,130.11,3.76]
[1764548646516,9.78282739,130.13,130.11,3.76]
[1764548646900,35.69579527,130.18,130.11,3.76]
[1764548646901,9.78282739,130.14,130.11,3.76]
[1764548647219,9.78282739,130.15,130.12,0.67]
[1764548647453,9.78282739,130.14,130.12,0.67]
[1764548647738,7.68308842,130.16,130.12,0.67]
[1764548647919,16.308864,130.19,130.12,8.35521364]
[1764548648100,0.2,130.29,130.15,9.78282739]
[1764548648304,0.2,130.29,130.16,3.76]
[1764548648305,65.24408964,130.28,130.16,3.76]
[1764548648532,9.78282739,130.18,130.16,3.76]
[1764548648733,9.78282739,130.18,130.16,2.76]
[1764548649045,8.80994492,130.22,130.17,0.67]
[1764548649046,7.68032187,130.21,130.17,0.67]
[1764548649340,0.2,130.29,130.2,9.78282739]
[1764548649532,0.2,130.29,130.25,9.78282739]
[1764548649831,7.87562673,130.29,130.26,3.74]
[1764548650036,7.87562673,130.29,130.26,0.67]
[1764548650037,0.2,130.29,130.26,0.67]
[1764548650334,9.78282739,130.31,130.27,4.41]
[1764548650529,0.2,130.32,130.27,4.41]
[1764548650729,0.2,130.32,130.28,0.67]
[1764548650932,0.2,130.32,130.29,3.74]
[1764548651132,75.2,130.43,130.31,9.78282739]
[1764548651133,0.6,130.43,130.31,9.78282739]
[1764548651323,0.6,130.43,130.29,3.74]
[1764548651324,9.78282739,130.39,130.33,9.78282739]
[1764548651657,0.2,130.43,130.36,9.78282739]
[1764548651825,9.78282739,130.41,130.37,3.74]
[1764548652147,9.78282739,130.41,130.37,4.41]
[1764548652515,9.78282739,130.42,130.38,0.67]
[1764548652841,9.78282739,130.41,130.37,3.74]
[1764548653019,9.78282739,130.4,130.38,3.74]
[1764548653221,8.80994492,130.41,130.38,3.74]
[1764548653422,0.2,130.43,130.39,0.67]
[1764548653633,0.2,130.43,130.4,9.78282739]
[1764548653829,0.2,130.43,130.39,0.67]
[1764548653830,9.78282739,130.42,130.39,0.67]
[1764548654029,9.78282739,130.41,130.4,3.74]
[1764548654532,8.80994492,130.4,130.38,3.74]
[1764548654839,8.80994492,130.38,130.35,3.74]
[1764548655019,18.59277231,130.36,130.35,3.74]
[1764548655336,8.80994492,130.35,130.29,3.74]
[1764548655661,8.80994492,130.32,130.29,3.74]
[1764548655957,9.78282739,130.3,130.29,3.74]
[1764548656132,18.59277231,130.3,130.2,0.67]
[1764548656326,16.308864,130.3,130.21,4.41]
[1764548656523,9.78282739,130.28,130.22,9.78282739]
[1764548656721,9.78282739,130.28,130.22,10.45282739]
[1764548656941,9.78282739,130.28,130.23,0.67]
[1764548657236,9.78282739,130.29,130.24,7.67813267]
[1764548657493,9.78282739,130.33,130.24,7.67813267]
[1764548657614,8.80994492,130.38,130.25,0.67]
[1764548657615,8.80994492,130.35,130.25,0.67]
[1764548657813,0.72,130.37,130.25,0.67]
[1764548657814,9.78282739,130.29,130.25,0.67]
[1764548658058,9.78282739,130.31,130.25,10.45282739]
[1764548658229,7.66871165,130.4,130.29,9.78282739]
[1764548658414,7.66871165,130.4,130.24,18.30886399]
[1764548658415,0.72,130.39,130.3,3.74]
[1764548658755,9.78282739,130.35,130.3,3.74]
[1764548659056,0.92,130.43,130.32,17.45624666]
[1764548659214,9.78282739,130.39,130.33,10.45282739]
[1764548659420,9.78282739,130.38,130.33,0.67]
[1764548659643,9.78282739,130.37,130.31,17.45655001]
[1764548659942,0.2,130.43,130.36,9.78282739]
[1764548660238,0.2,130.43,130.31,26.85874295]
[1764548660239,9.78282739,130.41,130.37,4.41]
[1764548660447,7.66753565,130.42,130.31,26.85874295]
[1764548660745,8.30700982,130.41,130.35,8.30700982]
[1764548660922,7.66753565,130.42,130.36,7.67048574]
[1764548661117,15.97454547,130.42,130.36,7.67048574]
[1764548661334,0.2,130.43,130.36,7.67048574]
[1764548661335,0.2,130.43,130.37,0.67]
[1764548661653,0.2,130.43,130.38,3.74]
[1764548661856,0.2,130.43,130.39,8.30700982]
[1764548662063,0.2,130.43,130.4,8.30700982]
[1764548662366,0.2,130.45,130.42,8.30700982]
[1764548662664,27.46316943,130.51,130.44,8.30700982]
[1764548662836,8.30700982,130.49,130.45,3.74]
[1764548663035,15.96804996,130.54,130.48,8.30700982]
[1764548663243,8.30700982,130.51,130.47,0.67]
[1764548663440,8.30700982,130.51,130.48,3.74]
[1764548663667,7.66104014,130.54,130.48,3.74]
[1764548663964,8.30700982,130.49,130.43,8.33650147]
[1764548664162,8.30700982,130.47,130.44,3.74]
[1764548664332,8.80994492,130.5,130.44,3.74]
[1764548664533,8.30700982,130.48,130.44,3.74]
[1764548664769,8.30700982,130.46,130.44,3.74]
[1764548665461,7.66389165,130.49,130.44,3.74]
[1764548665832,8.30700982,130.48,130.44,3.74]
[1764548666029,8.30700982,130.47,130.44,3.74]
[1764548666851,15.97090147,130.49,130.45,0.72]
[1764548667168,7.66171921,130.52,130.45,16.69264949]
[1764548667360,7.66084173,130.54,130.45,27.55007048]
[1764548667536,8.30700982,130.53,130.47,8.30700982]
[1764548667736,8.30700982,130.52,130.46,9.02700982]
[1764548667936,8.30700982,130.51,130.46,0.72]
[1764548668259,8.30700982,130.5,130.47,3.74]
[1764548668575,8.30700982,130.48,130.47,3.74]
[1764548668875,9.46994492,130.53,130.43,8.38636514]
[1764548669072,8.30700982,130.48,130.47,3.74]
[1764548669236,8.30700982,130.49,130.47,3.74]
[1764548669439,7.66166104,130.52,130.47,4.46]
[1764548669639,0.66,130.51,130.47,3.74]
[1764548669855,8.30700982,130.48,130.47,3.74]
[1764548670362,8.30700982,130.49,130.47,3.74]
[1764548670560,17.13041836,130.55,130.47,3.74]
[1764548670737,8.30700982,130.54,130.48,9.02700982]
[1764548670939,4.33810699,130.56,130.5,8.30700982]
[1764548671163,4.33810699,130.56,130.51,35.84487817]
[1764548671362,12.64511681,130.56,130.52,3.74]
[1764548671563,4.33810699,130.56,130.53,0.72]
[1764548671948,8.30700982,130.55,130.52,3.74]
[1764548672505,8.80994492,130.52,130.49,3.74]
[1764548672636,8.30700982,130.53,130.49,3.74]
[1764548672637,16.308864,130.53,130.49,3.74]
[1764548672838,16.968864,130.53,130.49,3.74]
[1764548673042,15.96984506,130.5,130.49,3.74]
[1764548673267,24.77978998,130.5,130.49,3.74]
[1764548673470,44.5968781,130.5,130.42,0.72]
[1764548673678,44.5968781,130.5,130.43,3.74]
[1764548673679,8.30700982,130.44,130.43,3.74]
[1764548673865,0.66,130.47,130.39,0.72]
[1764548674043,8.80994492,130.44,130.43,3.74]
[1764548674364,8.80994492,130.43,130.41,3.74]
[1764548674571,8.80994492,130.43,130.36,0.72]
[1764548674572,8.80994492,130.43,130.36,3.74]
[1764548674736,9.46994492,130.43,130.36,3.74]
[1764548675157,8.30700982,130.39,130.36,3.74]
[1764548675360,8.30700982,130.38,130.36,3.74]
[1764548675737,8.30700982,130.39,130.36,3.74]
[1764548675963,8.30700982,130.38,130.36,3.74]
[1764548676264,9.46994492,130.43,130.36,3.74]
[1764548676265,8.30700982,130.39,130.36,3.74]
[1764548676462,8.30700982,130.4,130.36,12.13096654]
[1764548676868,9.46994492,130.43,130.37,0.72]